bitfinex-derivatives/quotes_SOLF0:USTF0_20250411
["timestamp","ask_amount","ask_price","bid_price","bid_amount"]
[1744335149842,592.37637214,113.55,113.51,367.50032979]
[1744335150541,16.97233341,113.53,113.52,4.104e-05]
[1744335150846,575.40403873,113.55,113.5,367.50032979]
[1744335151033,592.37637214,113.55,113.5,367.50032979]
[1744335151747,0.06207146,113.54,113.52,792.89279983]
[1744335152051,592.37637214,113.55,113.52,485.88127885]
[1744335152346,8.8142,113.53,113.52,485.94328881]
[1744335153343,8.8142,113.53,113.52,0.06200996]
[1744335153541,0.05709234,113.54,113.52,0.06200996]
[1744335154041,8.8142,113.53,113.52,0.06200996]
[1744335154241,11.0298,113.53,113.52,0.06200996]
[1744335154944,11.0298,113.53,113.48,367.50032979]
[1744335154945,27.98793341,113.53,113.48,367.50032979]
[1744335155143,16.97233341,113.51,113.48,367.50032979]
[1744335155348,8.8173,113.49,113.48,367.50032979]
[1744335155745,8.8173,113.49,113.48,150.18305441]
[1744335158651,8.87720011,113.5,113.48,150.18305441]
[1744335159355,0.06040011,113.5,113.48,150.18305441]
[1744335159557,698.26,113.51,113.47,0.06428552]
[1744335160649,8.8178,113.49,113.47,0.06428552]
[1744335160954,0.05758182,113.5,113.47,0.06428552]
[1744335162739,8.87458182,113.5,113.47,0.06428552]
[1744335162942,0.05758182,113.5,113.47,8.88268552]
[1744335163544,0.05758182,113.5,113.47,0.06428552]
[1744335164149,8.87448182,113.5,113.47,8.88308552]
[1744335164653,8.87448182,113.5,113.47,0.06428552]
[1744335165453,8.8181,113.48,113.47,0.06428552]
[1744335165950,8.8181,113.48,113.44,8.8206]
[1744335166149,8.819,113.47,113.44,8.8206]
[1744335166347,205.79911423,113.49,113.44,8.8206]
[1744335166544,8.8185,113.48,113.44,8.8206]
[1744335166948,205.79911423,113.49,113.43,8.8219]
[1744335167146,0.06495484,113.47,113.43,8.8219]
[1744335167348,8.8198,113.46,113.45,0.06244719]
[1744335167552,29.15493085,113.48,113.38,16.97233341]
[1744335167745,0.0656328,113.47,113.44,0.05767425]
[1744335167943,0.0656328,113.47,113.44,8.8207]
[1744335168150,29.15493085,113.48,113.44,8.8207]
[1744335168550,29.15493085,113.48,113.43,4.4047]
[1744335168551,295.20270094,113.45,113.42,5.59419605]
[1744335169159,295.26609709,113.45,113.42,5.65515467]
[1744335169456,0.06339615,113.45,113.42,5.65515467]
[1744335169656,0.06339615,113.45,113.42,16.97233341]
[1744335170259,97.11666792,113.43,113.42,8.8227]
[1744335170458,97.11666792,113.43,113.38,16.97233341]
[1744335170652,97.11666792,113.43,113.41,8.8229]
[1744335170853,97.11666792,113.43,113.39,0.06241206]
[1744335171157,0.06480975,113.42,113.41,8.8235]
[1744335171361,0.06480975,113.42,113.39,2.32001206]
[1744335171659,0.06480975,113.42,113.4,8.8243]
[1744335171959,0.06480975,113.42,113.39,2.32001206]
[1744335172149,175.80898476,113.42,113.41,8.8235]
[1744335172354,111.58909255,113.43,113.4,16.97233341]
[1744335172653,303.48958726,113.45,113.42,16.97233341]
[1744335172960,299.97598726,113.45,113.44,25.79353341]
[1744335173254,292.94998726,113.45,113.44,25.79353341]
[1744335173760,292.94998726,113.45,113.44,34.70378159]
[1744335173960,292.94998726,113.45,113.44,17.73144818]
[1744335174162,44.15543051,113.45,113.44,17.73144818]
[1744335175055,2.712e-05,113.46,113.45,8.8204]
[1744335175251,2.1624,113.53,113.45,17.73024818]
[1744335175454,13.3021,113.55,113.48,16.97233341]
[1744335175852,13.3021,113.55,113.5,8.8165]
[1744335176053,2.3135,113.55,113.5,16.97233341]
[1744335176251,2.3135,113.55,113.52,8.8144]
[1744335176554,0.06301168,113.54,113.52,8.8144]
[1744335176754,0.06301168,113.54,113.51,0.06802091]
[1744335176955,0.06301168,113.54,113.52,8.8145]
[1744335177151,0.06301168,113.54,113.51,0.06802091]
[1744335177364,0.06301168,113.54,113.53,8.8142]
[1744335177864,0.06301168,113.54,113.53,8.96923883]
[1744335178162,0.06301168,113.54,113.51,0.06802091]
[1744335178557,0.06301168,113.54,113.52,12.06551266]
[1744335178859,2.26271168,113.54,113.52,12.06551266]
[1744335179157,8.8147,113.53,113.52,12.06551266]
[1744335179460,2.26271168,113.54,113.51,0.06802091]
[1744335179662,2.26271168,113.54,113.47,8.8184]
[1744335179855,2.1997,113.54,113.43,373.97233341]
[1744335180055,8.8158,113.51,113.48,8.8179]
[1744335180259,2.1997,113.54,113.48,8.8179]
[1744335180562,2.1997,113.54,113.42,2.3348]
[1744335180763,8.8186,113.48,113.42,2.3348]
[1744335180957,0.06322783,113.52,113.42,2.3348]
[1744335180958,698.12,113.49,113.42,8.8225]
[1744335181156,698.12,113.49,113.37,6.6707]
[1744335181157,16.97233341,113.47,113.37,6.6707]
[1744335181356,16.97233341,113.45,113.34,2.1168]
[1744335182061,698.12,113.49,113.34,2.1168]
[1744335182062,16.97233341,113.47,113.35,16.97233341]
[1744335182260,0.05963191,113.41,113.38,0.05945957]
[1744335182656,698.12,113.49,113.39,16.97233341]
[1744335182856,0.06505165,113.41,113.39,16.97233341]
[1744335183063,381.57,113.6,113.39,16.97233341]
[1744335183064,698.12,113.5,113.39,16.97233341]
[1744335183262,2.2538,113.5,113.42,16.97233341]
[1744335183663,2.2538,113.5,113.45,8.8199]
[1744335183860,2.2538,113.5,113.4,21.38583341]
[1744335184063,698.12,113.53,113.45,16.97233341]
[1744335184566,698.12,113.53,113.44,16.97233341]
[1744335184762,4.5268,113.52,113.46,8.8189]
[1744335185167,8.8163,113.51,113.44,16.97233341]
[1744335185363,8.8163,113.51,113.46,8.8189]
[1744335185558,0.06434455,113.49,113.46,8.87673553]
[1744335185763,0.06434455,113.49,113.46,17.03016894]
[1744335185966,698.12,113.53,113.48,16.97233341]
[1744335186470,698.12,113.53,113.46,16.97233341]
[1744335186663,698.12,113.53,113.44,16.97233341]
[1744335186867,698.12,113.53,113.47,8.8184]
[1744335187065,698.12,113.53,113.46,16.97233341]
[1744335187261,8.88224937,113.51,113.49,0.06354242]
[1744335187464,0.06624937,113.51,113.49,0.06354242]
[1744335187769,0.05613425,113.51,113.49,0.06665412]
[1744335188467,8.87213425,113.51,113.49,0.06665412]
[1744335188670,0.05613425,113.51,113.49,0.06665412]
[1744335189671,0.05613425,113.51,113.49,8.88365412]
[1744335190170,698.12,113.53,113.49,0.06665412]
[1744335190571,698.12,113.53,113.5,8.97063119]
[1744335190769,698.12,113.53,113.52,8.815]
[1744335190965,698.16,113.59,113.52,16.97233341]
[1744335191173,8.8105,113.58,113.54,8.8133]
[1744335191366,8.8105,113.58,113.54,8.86919956]
[1744335191367,0.06585318,113.57,113.54,8.86919956]
[1744335191568,0.06585318,113.57,113.54,0.05589956]
[1744335191970,0.06585318,113.57,113.54,8.86899956]
[1744335192173,0.06585318,113.57,113.54,0.05589956]
[1744335192561,8.8126,113.56,113.54,0.05589956]
[1744335193072,0.06585318,113.57,113.54,0.05589956]
[1744335194174,8.8126,113.55,113.54,0.05589956]
[1744335197078,0.06585318,113.57,113.54,0.05589956]
[1744335198076,0.06585318,113.57,113.54,8.86889956]
[1744335198381,0.06585318,113.57,113.54,17.02823297]
[1744335198682,697.98,113.65,113.56,16.97233341]
[1744335198875,697.98,113.65,113.54,8.85589956]
[1744335198876,697.98,113.65,113.58,16.97233341]
[1744335199071,706.7853,113.65,113.58,16.97233341]
[1744335199279,697.98,113.65,113.58,16.97233341]
[1744335199676,697.98,113.65,113.6,0.06690938]
[1744335200181,8.8061,113.64,113.6,8.87520938]
[1744335200380,8.8061,113.64,113.6,0.06690938]
[1744335200576,697.98,113.65,113.6,0.06690938]
[1744335200780,706.7849,113.65,113.61,8.8075]
[1744335200973,697.98,113.65,113.6,0.06690938]
[1744335201174,8.8077,113.62,113.6,0.06690938]
[1744335201377,697.98,113.65,113.6,0.06690938]
[1744335201378,6.4215,113.64,113.6,0.06690938]
[1744335201779,8.808,113.61,113.6,0.06690938]
[1744335202181,697.98,113.65,113.6,0.06690938]
[1744335202382,8.8077,113.62,113.6,0.06690938]
[1744335202581,4.3468,113.64,113.6,0.06690938]
[1744335202882,8.8067,113.63,113.6,0.06690938]
[1744335203081,4.3468,113.64,113.6,0.06690938]
[1744335203382,4.3468,113.64,113.61,8.8074]
[1744335203682,697.98,113.65,113.6,0.06690938]
[1744335203882,697.98,113.65,113.6,17.03924279]
[1744335204082,697.98,113.65,113.6,0.06690938]
[1744335204583,697.98,113.65,113.62,8.8068]
[1744335204779,697.98,113.65,113.6,16.97233341]
[1744335205085,697.98,113.65,113.63,8.806]
[1744335205382,132.0,113.67,113.62,16.97233341]
[1744335205580,132.0,113.7,113.66,16.97233341]
[1744335205979,132.0,113.7,113.67,0.06152902]
[1744335206684,8.8023,113.69,113.67,0.06152902]
[1744335207180,132.0,113.7,113.62,8.8072]
[1744335207385,4.4326,113.68,113.61,21.39353341]
[1744335208184,8.8028,113.68,113.61,21.39353341]
[1744335208383,0.06516917,113.66,113.63,17.02813652]
[1744335208779,0.06516917,113.66,113.65,8.8049]
[1744335209482,140.8013,113.7,113.65,16.97233341]
[1744335209483,132.0,113.7,113.65,16.97233341]
[1744335209675,132.0,113.7,113.63,0.06093213]
[1744335209676,132.0,113.7,113.67,16.97233341]
[1744335209876,10.9561,113.75,113.69,16.97233341]
[1744335210076,2.1584,113.75,113.69,16.97233341]
[1744335210278,2.1728,113.8,113.73,16.97233341]
[1744335210479,699.582,113.84,113.75,16.97233341]
[1744335210684,699.582,113.84,113.74,0.06222422]
[1744335210887,2.1506,113.83,113.74,0.06222422]
[1744335211186,8.7934,113.8,113.75,8.797]
[1744335211383,2.1506,113.83,113.77,0.06377587]
[1744335212587,2.3252,113.82,113.77,0.06377587]
[1744335213590,8.7948,113.78,113.77,0.06377587]
[1744335214390,8.7937,113.8,113.77,0.06377587]
[1744335214589,2.3252,113.82,113.77,0.06377587]
[1744335215389,11.1172,113.82,113.78,8.7944]
[1744335215590,2.3252,113.82,113.77,0.06377587]
[1744335217892,8.7948,113.78,113.77,0.06377587]
[1744335218494,2.3252,113.82,113.77,0.06377587]
[1744335218899,2.3252,113.82,113.78,8.7943]
[1744335219497,2.3252,113.82,113.79,8.794]
[1744335219795,2.3252,113.82,113.76,16.97233341]
[1744335220002,2.3252,113.82,113.79,0.05849071]
[1744335220698,696.6,113.9,113.8,16.97233341]
[1744335220902,6.7768,113.89,113.8,16.97233341]
[1744335221194,696.6,113.9,113.84,16.97233341]
[1744335221702,8.7853,113.91,113.86,8.7884]
[1744335221999,6.7768,113.94,113.86,0.06410441]
[1744335222202,6.7768,113.94,113.87,8.7877]
[1744335222500,6.7768,113.94,113.83,16.97233341]
[1744335222501,16.97233341,113.92,113.81,16.97233341]
[1744335222700,6.7768,113.94,113.89,0.06605692]
[1744335222902,6.7768,113.94,113.83,16.97233341]
[1744335223198,8.7848,113.91,113.86,8.7881]
[1744335223405,23.74913341,113.94,113.87,0.05669828]
[1744335223596,23.74913341,113.94,113.83,16.97233341]
[1744335223792,8.7864,113.89,113.83,16.97233341]
[1744335223999,8.7864,113.89,113.87,0.05694509]
[1744335224204,16.97233341,113.93,113.87,0.05694509]
[1744335224397,6.7768,113.94,113.87,0.05694509]
[1744335224592,16.97233341,113.93,113.89,0.06268932]
[1744335224792,16.97233341,113.93,113.81,16.97233341]
[1744335225002,8.7881,113.87,113.82,8.7912]
[1744335225401,696.36,113.89,113.83,9.74543933]
[1744335225705,8.7888,113.86,113.83,9.74543933]
[1744335225907,8.7888,113.86,113.85,0.06707937]
[1744335226203,4.3825,113.88,113.8,8.793]
[1744335226699,8.7918,113.82,113.75,16.97233341]
[1744335227096,8.7926,113.81,113.75,16.97233341]
[1744335227302,16.97233341,113.85,113.73,16.97233341]
[1744335227501,0.06322097,113.79,113.77,0.06119108]
[1744335227701,8.7919,113.82,113.77,8.7949]
[1744335227903,0.06076168,113.79,113.78,9.77070056]
[1744335228894,4.3825,113.88,113.78,9.77070056]
[1744335229098,4.3825,113.88,113.79,16.97233341]
[1744335229404,8.7894,113.86,113.81,25.76473341]
[1744335229703,8.7894,113.86,113.8,9.77070056]
[1744335230100,0.06185918,113.84,113.82,0.05908032]
[1744335230806,0.06185918,113.84,113.83,9.77070056]
[1744335231205,8.85205918,113.84,113.83,9.77070056]
[1744335231401,0.06185918,113.84,113.82,0.05908032]
[1744335231803,8.7926,113.81,113.77,8.7954]
[1744335232107,2.1177,113.83,113.76,16.97233341]
[1744335232304,2.1695,113.82,113.76,16.97233341]
[1744335232503,2.1695,113.82,113.77,9.78709856]
[1744335233002,2.1695,113.82,113.78,0.06462545]
[1744335233003,0.05578912,113.81,113.78,0.06462545]
[1744335233511,8.7933,113.8,113.78,0.06462545]
[1744335234008,8.7937,113.8,113.78,0.06462545]
[1744335234506,0.05578912,113.81,113.79,9.7459673]
[1744335234705,8.84878912,113.81,113.78,0.06462545]
[1744335235010,0.05578912,113.81,113.78,17.03695886]
[1744335235402,0.05578912,113.81,113.8,8.7933]
[1744335235608,0.05578912,113.81,113.8,18.53494788]
[1744335236310,0.05578912,113.81,113.8,9.74164788]
[1744335238515,4.3889,113.89,113.8,45.85673111]
[1744335238708,4.3889,113.89,113.82,27.33508323]
[1744335239406,4.3889,113.89,113.83,9.74164788]
[1744335239608,0.06041901,113.87,113.84,8.84621018]
[1744335239801,0.06041901,113.87,113.84,0.05651018]
[1744335240006,8.7892,113.86,113.85,9.74164788]
[1744335240206,0.06041901,113.87,113.85,9.74164788]
[1744335240608,0.06041901,113.87,113.86,9.74164788]
[1744335240803,0.06041901,113.87,113.84,0.05651018]
[1744335241008,0.06041901,113.87,113.79,8.7937]
[1744335241206,696.1,113.87,113.76,27.33508323]
[1744335241412,696.1,113.93,113.78,27.33508323]
[1744335241617,27.33508323,113.9,113.78,27.33508323]
[1744335241910,2.2423,113.89,113.78,27.33508323]
[1744335242107,8.7911,113.83,113.79,8.7935]
[1744335242306,8.7911,113.83,113.82,0.05883614]
[1744335242504,2.2423,113.89,113.82,0.05883614]
[1744335242710,0.05565102,113.84,113.82,0.06454055]
[1744335242910,696.1,113.86,113.77,27.33508323]
[1744335243114,0.0665506,113.84,113.78,8.7943]
[1744335243317,0.0665506,113.84,113.8,0.0627292]
[1744335243615,8.7922,113.82,113.8,0.0627292]
[1744335244020,2.3352,113.83,113.8,0.0627292]
[1744335244221,8.7925,113.81,113.8,0.0627292]
[1744335244421,2.3352,113.83,113.72,33.76678323]
[1744335244611,2.3352,113.83,113.74,8.7977]
[1744335244921,27.33508323,113.82,113.7,27.33508323]
[1744335245317,8.7961,113.77,113.7,27.33508323]
[1744335245721,0.05753407,113.75,113.73,8.7982]
[1744335246222,0.05753407,113.75,113.72,0.06266582]
[1744335246417,8.85513407,113.75,113.72,0.06266582]
[1744335246914,8.7983,113.74,113.72,0.06266582]
[1744335247315,0.05753407,113.75,113.72,0.06266582]
[1744335247820,8.7979,113.74,113.72,0.06266582]
[1744335249315,0.05753407,113.75,113.72,0.06266582]
[1744335250321,0.05753407,113.75,113.73,8.7985]
[1744335250523,0.05753407,113.75,113.72,0.06266582]
[1744335251017,8.85513407,113.75,113.72,0.06266582]
[1744335251218,0.05753407,113.75,113.72,0.06266582]
[1744335251721,8.7986,113.74,113.72,0.06266582]
[1744335251918,0.05753407,113.75,113.72,0.06266582]
[1744335252916,8.7983,113.74,113.72,0.06266582]
[1744335253621,8.7987,113.73,113.72,0.06266582]
[1744335253921,0.05753407,113.75,113.72,0.06266582]
[1744335254622,8.7987,113.73,113.72,0.06266582]
[1744335255122,8.8008,113.71,113.67,8.803]
[1744335255420,4.601,113.74,113.68,9.42783154]
[1744335255718,696.46,113.72,113.62,21.1872984]
[1744335256116,696.46,113.72,113.63,9.43102167]
[1744335256316,8.803,113.68,113.66,0.06028952]
[1744335256615,0.05924847,113.68,113.66,0.06028952]
[1744335256819,8.86184847,113.68,113.66,0.06028952]
[1744335257323,0.05924847,113.68,113.66,0.06028952]
[1744335257714,0.05924847,113.68,113.66,8.86408952]
[1744335258527,0.05924847,113.68,113.67,8.8033]
[1744335260220,696.46,113.72,113.66,16.92088792]
[1744335260420,696.46,113.72,113.68,16.8605984]
[1744335260618,696.46,113.72,113.69,8.8016]
[1744335261021,696.46,113.72,113.64,16.8605984]
[1744335261323,696.52540609,113.72,113.69,0.05583907]
[1744335261524,696.46,113.72,113.69,0.05583907]
[1744335261824,696.52596001,113.72,113.69,0.05583907]
[1744335262027,8.801,113.7,113.69,0.05583907]
[1744335262322,696.52596001,113.72,113.69,0.05583907]
[1744335262527,8.8003,113.71,113.69,0.05583907]
[1744335262718,696.52596001,113.72,113.69,0.05583907]
[1744335263025,8.8006,113.71,113.69,0.05583907]
[1744335263226,696.52596001,113.72,113.69,0.05583907]
[1744335264124,8.801,113.7,113.69,0.05583907]
[1744335265626,8.8005,113.71,113.69,0.05583907]
[1744335266931,705.32566001,113.72,113.69,0.05583907]
[1744335267229,696.52596001,113.72,113.69,0.05583907]
[1744335267430,8.8006,113.71,113.69,0.05583907]
[1744335267633,0.06596001,113.72,113.69,0.05583907]
[1744335267932,8.801,113.7,113.69,0.05583907]
[1744335268728,8.803,113.68,113.65,8.8045]
[1744335268930,696.8,113.72,113.64,16.8605984]
[1744335269931,0.05986914,113.69,113.67,0.0603164]
[1744335270821,0.05986914,113.69,113.6,39.53437925]
[1744335271131,713.6605984,113.72,113.6,54.86386033]
[1744335271431,713.6605984,113.72,113.62,8.8069]
[1744335271931,8.8046,113.66,113.62,8.8069]
[1744335272131,8.8046,113.66,113.6,54.86386033]
[1744335272336,0.06574232,113.65,113.63,0.06625681]
[1744335272633,696.8,113.72,113.65,8.8046]
[1744335272934,0.05809348,113.7,113.65,8.8046]
[1744335273121,0.05809348,113.7,113.67,0.05556772]
[1744335273827,8.8026,113.68,113.67,0.05556772]
[1744335274235,0.05809348,113.7,113.68,8.8024]
[1744335274438,0.05809348,113.7,113.67,0.05556772]
[1744335275335,696.9,113.79,113.68,16.8605984]
[1744335275527,4.5238,113.78,113.7,16.8605984]
[1744335275727,8.7981,113.74,113.71,8.7999]
[1744335276040,4.5238,113.78,113.68,16.8605984]
[1744335276336,16.8605984,113.76,113.65,4.3348]
[1744335276534,0.05914411,113.74,113.72,0.05799467]
[1744335276727,16.8605984,113.76,113.65,19.0655984]
[1744335277036,8.8008,113.71,113.67,8.8029]
[1744335277235,8.8008,113.71,113.69,0.06701949]
[1744335277535,0.06471817,113.7,113.69,0.06701949]
[1744335277933,8.803,113.68,113.63,16.8605984]
[1744335278338,0.06540103,113.67,113.64,8.87221599]
[1744335278840,8.86880103,113.67,113.64,8.87221599]
[1744335279240,8.8043,113.66,113.64,0.06701599]
[1744335279634,0.06540103,113.67,113.64,0.06701599]
[1744335279830,8.8049,113.65,113.64,0.06701599]
[1744335280437,2.3266,113.66,113.61,11.94495397]
[1744335280638,2.2121,113.65,113.61,11.94495397]
[1744335281138,699.1121,113.65,113.61,11.94495397]
[1744335281645,8.8065,113.63,113.62,0.05968899]
[1744335282343,8.8072,113.62,113.61,11.94495397]
[1744335282641,0.06224845,113.64,113.61,11.94495397]
[1744335283750,0.06224845,113.64,113.61,20.81505906]
[1744335283948,0.06224845,113.64,113.61,12.00715906]
[1744335284950,0.06224845,113.64,113.62,8.8072]
[1744335285147,0.06224845,113.64,113.61,12.00715906]
[1744335285856,0.06224845,113.64,113.62,8.807]
[1744335286148,0.06224845,113.64,113.61,12.00715906]
[1744335286349,0.06224845,113.64,113.61,20.81495906]
[1744335286551,0.06224845,113.64,113.61,12.00715906]
[1744335287155,0.06224845,113.64,113.62,8.8067]
[1744335287955,0.06224845,113.64,113.61,20.81465906]
[1744335288355,0.06224845,113.64,113.61,12.00715906]
[1744335288654,8.86804845,113.64,113.61,20.81475906]
[1744335288958,0.06224845,113.64,113.61,12.00715906]
[1744335289156,8.8069,113.63,113.61,12.00715906]
[1744335289452,0.06224845,113.64,113.61,12.00715906]
[1744335289848,8.8072,113.62,113.61,12.00715906]
[1744335292956,8.808,113.61,113.6,35.83486193]
[1744335296357,8.86837236,113.62,113.6,35.83486193]
[1744335297957,0.06077236,113.62,113.6,35.83486193]
[1744335299160,0.06077236,113.62,113.6,44.64316193]
[1744335299463,0.06077236,113.62,113.6,35.83486193]
[1744335300860,696.9,113.65,113.61,27.44075465]
[1744335301061,696.9,113.65,113.61,29.56425465]
[1744335301463,696.9,113.65,113.62,8.807]
[1744335301760,696.9,113.65,113.61,2.1235]
[1744335302162,362.55021326,113.74,113.61,2.1235]
[1744335302163,697.36,113.71,113.64,27.44075465]
[1744335302556,8.8014,113.7,113.67,8.8033]
[1744335302755,697.36,113.71,113.67,8.8033]
[1744335302955,697.36,113.71,113.66,27.44075465]
[1744335303164,697.36,113.71,113.67,8.8029]
[1744335303365,697.36,113.71,113.67,8.85915497]
[1744335303366,0.06633324,113.7,113.67,8.85915497]
[1744335303562,0.06633324,113.7,113.69,8.8018]
[1744335303763,35.83486193,113.75,113.68,16.86048184]
[1744335303965,35.83486193,113.75,113.68,19.12798184]
[1744335304165,8.8007,113.71,113.68,19.12798184]
[1744335304467,35.83486193,113.75,113.66,16.86048184]
[1744335304765,8.8023,113.69,113.65,2.3116]
[1744335305160,8.8026,113.68,113.66,0.06724101]
[1744335305359,0.05725898,113.68,113.65,2.3116]
[1744335305560,0.05725898,113.68,113.66,0.05779983]
[1744335308266,8.86005898,113.68,113.66,0.05779983]
[1744335308470,0.05725898,113.68,113.66,0.05779983]
[1744335308766,8.85985898,113.68,113.66,0.05779983]
[1744335308965,0.05725898,113.68,113.66,0.05779983]
[1744335309569,77.03725898,113.68,113.66,0.05779983]
[1744335309961,85.84035898,113.68,113.66,0.05779983]
[1744335310562,0.05725898,113.68,113.67,8.8033]
[1744335310764,0.05725898,113.68,113.66,0.05779983]
[1744335311674,8.85995898,113.68,113.66,0.05779983]
[1744335312173,8.8033,113.67,113.66,0.05779983]
[1744335313075,85.7633,113.67,113.66,0.05779983]
[1744335313373,76.96,113.67,113.66,0.05779983]
[1744335314066,85.7633,113.67,113.66,0.05779983]
[1744335315175,85.7633,113.67,113.62,19.12798184]
[1744335315176,8.8052,113.65,113.62,8.8067]
[1744335315369,8.8052,113.65,113.6,52.69534377]
[1744335315370,76.96,113.67,113.6,52.69534377]
[1744335315575,79.1659,113.67,113.6,35.83486193]
[1744335315774,2.1385,113.66,113.6,35.83486193]
[1744335315963,8.8069,113.63,113.6,35.83486193]
[1744335316167,2.1385,113.66,113.6,35.83486193]
[1744335316467,0.05615112,113.63,113.61,8.8075]
[1744335316875,0.05615112,113.63,113.61,8.86906465]
[1744335317173,76.96,113.67,113.62,16.86048184]
[1744335317777,76.96,113.67,113.64,8.8052]
[1744335318377,77.02272282,113.67,113.64,8.87236129]
[1744335318672,77.02272282,113.67,113.65,8.8048]
[1744335319474,77.02272282,113.67,113.64,8.87256129]
[1744335319681,77.02272282,113.67,113.64,0.06716129]
[1744335320778,77.02272282,113.67,113.64,8.87246129]
[1744335321976,77.02272282,113.67,113.64,0.06716129]
[1744335322166,8.8049,113.65,113.64,0.06716129]
[1744335322777,8.8045,113.66,113.64,0.06716129]
[1744335323878,77.02272282,113.67,113.64,0.06716129]
[1744335324372,8.8045,113.66,113.64,0.06716129]
[1744335324676,77.02272282,113.67,113.64,0.06716129]
[1744335324981,85.82612282,113.67,113.64,0.06716129]
[1744335325180,77.02272282,113.67,113.64,8.87236129]
[1744335325367,0.06272282,113.67,113.64,16.92764313]
[1744335325575,8.7996,113.72,113.68,8.802]
[1744335326274,8.7996,113.72,113.69,8.8017]
[1744335326674,0.05586055,113.72,113.69,0.06385293]
[1744335326874,0.05586055,113.72,113.69,8.86525293]
[1744335327877,0.05586055,113.72,113.7,8.8009]
[1744335328178,0.05586055,113.72,113.69,0.06385293]
[1744335328480,0.05586055,113.72,113.7,8.801]
[1744335329182,0.05586055,113.72,113.71,8.8002]
[1744335332285,705.8968,113.76,113.72,8.7989]
[1744335332482,697.1,113.76,113.72,16.86048184]
[1744335332883,697.1,113.76,113.74,8.7974]
[1744335333088,75.08,113.78,113.72,16.86048184]
[1744335333385,8.7959,113.77,113.73,8.7981]
[1744335333580,0.05848576,113.76,113.74,0.06379282]
[1744335334084,0.05848576,113.76,113.74,8.86119282]
[1744335335183,0.05848576,113.76,113.74,0.06379282]
[1744335335584,0.05848576,113.76,113.74,8.86129282]
[1744335336391,0.05848576,113.76,113.74,0.06379282]
[1744335336692,0.05848576,113.76,113.74,16.92427466]
[1744335337189,0.05848576,113.76,113.75,8.7971]
[1744335340490,0.05848576,113.76,113.74,8.86139282]
[1744335341090,0.05848576,113.76,113.74,0.06379282]
[1744335341592,8.7971,113.75,113.74,0.06379282]
[1744335341894,0.05848576,113.76,113.74,0.06379282]
[1744335342286,696.65848576,113.76,113.68,16.86048184]
[1744335342681,698.9952,113.76,113.68,16.86048184]
[1744335342882,8.7988,113.73,113.7,8.8006]
[1744335343088,698.9952,113.76,113.68,16.86048184]
[1744335343393,698.9952,113.76,113.7,16.86048184]
[1744335343592,0.05746557,113.73,113.71,0.06512474]
[1744335343993,0.05746557,113.73,113.72,8.7992]
[1744335344193,0.05746557,113.73,113.71,0.06512474]
[1744335344694,0.05746557,113.73,113.71,8.86502474]
[1744335344893,0.05746557,113.73,113.71,0.06512474]
[1744335345193,8.85626557,113.73,113.71,0.06512474]
[1744335345588,0.05746557,113.73,113.71,0.06512474]
[1744335346101,71.37746557,113.73,113.71,0.06512474]
[1744335346490,80.17656557,113.73,113.71,0.06512474]
[1744335347202,71.37746557,113.73,113.71,8.86522474]
[1744335347495,71.37746557,113.73,113.71,0.06512474]
[1744335347703,8.7995,113.72,113.71,0.06512474]
[1744335347898,71.37746557,113.73,113.63,16.86048184]
[1744335348093,2.6043,113.71,113.63,16.86048184]
[1744335348308,8.8023,113.69,113.65,8.8045]
[1744335349105,0.0617788,113.68,113.66,0.05843024]
[1744335349489,71.4017788,113.68,113.66,0.05843024]
[1744335349904,8.8033,113.67,113.66,0.05843024]
[1744335350300,71.4017788,113.68,113.6,52.69534377]
[1744335350499,8.805,113.65,113.61,8.8075]
[1744335351105,8.8057,113.64,113.61,8.8075]
[1744335351405,8.86977794,113.64,113.61,8.87198561]
[1744335352307,0.06407794,113.64,113.61,8.87198561]
[1744335353305,0.06407794,113.64,113.61,25.73246745]
[1744335355117,71.36,113.72,113.63,16.86048184]
[1744335355412,5.0579,113.71,113.63,16.86048184]
[1744335355601,2.6294,113.7,113.63,25.66658184]
[1744335356108,2.6294,113.7,113.64,8.8055]
[1744335356109,8.8032,113.68,113.64,8.8055]
[1744335356311,0.06468264,113.68,113.65,0.06591996]
[1744335356612,71.36,113.67,113.65,0.06591996]
[1744335357008,71.36,113.67,113.6,35.83486193]
[1744335357206,2.5247,113.66,113.6,35.83486193]
[1744335357507,2.5247,113.66,113.6,44.64316193]
[1744335357707,2.5247,113.66,113.6,35.83486193]